fUSD/lending_fUSD_20260126
["ID","MTS","AMOUNT","RATE_DAILY","PERIOD"]
[403603612,1769413835063,-250.0,0.0001631,2]
[403603613,1769413835072,-250.0,0.0001631,2]
[403603614,1769413835082,-250.0,0.0001631,2]
[403603615,1769413835091,-250.0,0.0001631,2]
[403603616,1769413835358,-250.0,0.0001631,2]
[403603617,1769413835370,-151.0,0.0001631,2]
[403603618,1769413835380,-250.0,0.0001631,2]
[403603619,1769413835390,-250.0,0.0001631,2]
[403603620,1769413835399,-250.0,0.0001631,2]
[403603621,1769413835409,-151.0,0.0001631,2]
[403603622,1769413835419,-250.0,0.0001631,2]
[403603623,1769413835428,-250.0,0.0001631,2]
[403603624,1769413835438,-250.0,0.0001631,2]
[403603625,1769413835448,-250.0,0.0001631,2]
[403603626,1769413835458,-151.0,0.0001631,2]
[403603627,1769413835467,-250.0,0.0001631,2]
[403603628,1769413835476,-250.0,0.0001631,2]
[403603629,1769413835486,-250.0,0.0001631,2]
[403603630,1769413835496,-151.0,0.0001631,2]
[403603631,1769413835505,-250.0,0.0001631,2]
[403603632,1769413835515,-250.0,0.0001631,2]
[403603633,1769413835524,-250.0,0.0001631,2]
[403603634,1769413835534,-151.0,0.0001631,2]
[403603635,1769413835544,-250.0,0.0001631,2]
[403603636,1769413835553,-250.0,0.0001631,2]
[403603637,1769413835562,-250.0,0.0001631,2]
[403603638,1769413835571,-151.0,0.0001631,2]
[403603639,1769413835581,-250.0,0.0001631,2]
[403603640,1769413835590,-250.0,0.0001631,2]
[403603641,1769413835599,-250.0,0.0001631,2]
[403603642,1769413835608,-250.0,0.0001631,2]
[403603643,1769413835619,-151.0,0.0001631,2]
[403603644,1769413835632,-854.2589148,0.0001631,2]
[403603645,1769413835641,-322.6107,0.0001631,2]
[403603646,1769413835651,-250.0,0.0001631,2]
[403603647,1769413835660,-250.0,0.0001631,2]
[403603648,1769413835670,-500.0,0.0001631,2]
[403603649,1769413835680,-250.0,0.0001631,2]
[403603650,1769413835689,-151.0,0.0001631,2]
[403603651,1769413835701,-250.0,0.0001631,2]
[403603652,1769413835711,-250.0,0.0001631,2]
[403603653,1769413835720,-500.0,0.0001631,2]
[403603654,1769413835729,-250.0,0.0001631,2]
[403603655,1769413835738,-151.0,0.0001631,2]
[403603656,1769413835747,-250.0,0.0001631,2]
[403603657,1769413835757,-250.0,0.0001631,2]
[403603658,1769413835767,-500.0,0.0001631,2]
[403603659,1769413835776,-250.0,0.0001631,2]
[403603660,1769413835785,-151.0,0.0001631,2]
[403603661,1769413835793,-250.0,0.0001631,2]
[403603662,1769413835802,-500.0,0.0001631,2]
[403603663,1769413835811,-250.0,0.0001631,2]
[403603664,1769413835820,-250.0,0.0001631,2]
[403603665,1769413835829,-151.0,0.0001631,2]
[403603666,1769413835837,-250.0,0.0001631,2]
[403603667,1769413835846,-500.0,0.0001631,2]
[403603668,1769413835854,-250.0,0.0001631,2]
[403603669,1769413835863,-250.0,0.0001631,2]
[403603670,1769413835872,-500.0,0.0001631,2]
[403603671,1769413835881,-250.0,0.0001631,2]
[403603672,1769413835890,-500.0,0.0001631,2]
[403603673,1769413835898,-500.0,0.0001631,2]
[403603674,1769413835907,-500.0,0.0001631,2]
[403603675,1769413835916,-500.0,0.0001631,2]
[403603676,1769413835924,-500.0,0.0001631,2]
[403603677,1769413835934,-209.40437684,0.0001631,2]
[403603678,1769413835942,-151.0,0.0001631,2]
[403603679,1769413835951,-3000.0,0.0001631,2]
[403603680,1769413835960,-3000.0,0.0001631,2]
[403603681,1769413835969,-3000.0,0.0001631,2]
[403603682,1769413835978,-250.0,0.0001631,2]
[403603683,1769413835987,-3000.0,0.0001631,2]
[403603684,1769413835995,-250.0,0.0001631,2]
[403603685,1769413836004,-3000.0,0.0001631,2]
[403603686,1769413836012,-250.0,0.0001631,2]
[403603687,1769413836021,-2836.87079953,0.0001631,2]
[403603688,1769413836030,-250.0,0.0001631,2]
[403603689,1769413836039,-250.0,0.0001631,2]
[403603690,1769413836048,-250.0,0.0001631,2]
[403603691,1769413836057,-752.7847282,0.0001631,2]
[403603692,1769413836066,-250.0,0.0001631,2]
[403603693,1769413836075,-250.0,0.0001631,2]
[403603694,1769413836085,-250.0,0.0001631,2]
[403603695,1769413836094,-250.0,0.0001631,2]
[403603696,1769413836102,-286.93679569,0.0001631,2]
[403603697,1769413836112,-512.1375932,0.00016327,2]
[403603698,1769413836121,-150.0,0.00016356,2]
[403603699,1769413836130,-300.0,0.00016356,2]
[403603700,1769413836140,-150.0,0.00016356,2]
[403603701,1769413836149,-179.98,0.00016356,2]
[403603702,1769413836158,-150.0,0.00016356,2]
[403603703,1769413836168,-1231.25,0.00016356,2]
[403603704,1769413836177,-172.23,0.00016356,2]
[403603705,1769413836187,-468.76,0.00016356,2]
[403603706,1769413836196,-558.94,0.00016356,2]
[403603707,1769413836206,-162.44,0.00016356,2]
[403603708,1769413836215,-150.0,0.00016356,2]
[403603709,1769413836225,-179.98,0.00016356,2]
[403603710,1769413836235,-150.0,0.00016356,2]
[403603711,1769413836244,-172.23,0.00016356,2]
[403603712,1769413836253,-558.94,0.00016356,2]
[403603713,1769413836263,-468.76,0.00016356,2]
[403603714,1769413836272,-150.0,0.00016356,2]
[403603715,1769413836281,-558.94,0.00016356,2]
[403603716,1769413836291,-172.23,0.00016356,2]
[403603717,1769413836299,-179.98,0.00016356,2]
[403603718,1769413836309,-468.76,0.00016356,2]
[403603719,1769413836318,-150.0,0.00016356,2]
[403603720,1769413836327,-150.0,0.00016356,2]
[403603721,1769413836336,-558.94,0.00016356,2]
[403603722,1769413836345,-172.23,0.00016356,2]
[403603723,1769413836354,-150.0,0.00016356,2]
[403603724,1769413836364,-179.98,0.00016356,2]
[403603725,1769413836373,-468.76,0.00016356,2]
[403603726,1769413836382,-150.0,0.00016356,2]
[403603727,1769413836391,-172.23,0.00016356,2]
[403603728,1769413836401,-558.94,0.00016356,2]
[403603729,1769413836410,-468.76,0.00016356,2]
[403603730,1769413836420,-179.98,0.00016356,2]
[403603731,1769413836429,-150.0,0.00016356,2]
[403603732,1769413836438,-179.98,0.00016356,2]
[403603733,1769413836447,-150.0,0.00016356,2]
[403603734,1769413836456,-558.94,0.00016356,2]
[403603735,1769413836466,-172.23,0.00016356,2]
[403603736,1769413836475,-150.0,0.00016356,2]
[403603737,1769413836485,-468.76,0.00016356,2]
[403603738,1769413836493,-150.0,0.00016356,2]
[403603739,1769413836502,-558.94,0.00016356,2]
[403603740,1769413836512,-172.23,0.00016356,2]
[403603741,1769413836520,-179.98,0.00016356,2]
[403603742,1769413836529,-152.1,0.00016356,2]
[403603743,1769413836538,-468.76,0.00016356,2]
[403603744,1769413836547,-179.98,0.00016356,2]
[403603745,1769413836557,-150.0,0.00016356,2]
[403603746,1769413836566,-558.94,0.00016356,2]
[403603747,1769413836575,-150.0,0.00016356,2]
[403603748,1769413836584,-172.23,0.00016356,2]
[403603749,1769413836593,-870.96,0.00016356,2]
[403603750,1769413836602,-10698.54905143,0.0001638,2]
[403603751,1769413836611,-7317.08563727,0.0001638,2]
[403603752,1769413836623,-163.0,0.000164,2]
[403603753,1769413836637,-163.0,0.000164,2]
[403603754,1769413836646,-1086.0,0.000164,2]
[403603755,1769413836655,-837.0,0.000164,2]
[403603756,1769413836664,-837.0,0.000164,2]
[403603757,1769413836674,-837.0,0.000164,2]
[403603758,1769413836683,-1086.0,0.000164,2]
[403603759,1769413836694,-1086.0,0.000164,2]
[403603760,1769413836704,-1086.0,0.000164,2]
[403603761,1769413836713,-1086.0,0.000164,2]
[403603762,1769413836723,-1086.0,0.000164,2]
[403603763,1769413836732,-167.99,0.00016413,2]
[403603764,1769413836742,-1000.0,0.00016421,2]
[403603765,1769413836751,-1000.0,0.00016421,2]
[403603766,1769413836760,-1000.0,0.00016421,2]
[403603767,1769413836769,-1000.0,0.00016421,2]
[403603768,1769413836778,-1000.0,0.00016421,2]
[403603769,1769413836786,-912.711,0.00016421,2]
[403603770,1769413836795,-1000.0,0.00016421,2]
[403603771,1769413836804,-281.95581676,0.00016434,2]
[403603772,1769413836813,-201.139,0.00016437,2]
[403603773,1769413836822,-500.0,0.00016438,2]
[403603774,1769413836831,-1909.84,0.00016438,2]
[403603775,1769413836840,-1909.84,0.00016438,2]
[403603776,1769413836849,-1909.84,0.00016438,2]
[403603777,1769413836858,-1909.84,0.00016438,2]
[403603778,1769413836867,-1909.84,0.00016438,2]
[403603779,1769413836877,-1757.21,0.00016438,2]
[403603780,1769413836886,-1757.21,0.00016438,2]
[403603781,1769413836895,-1757.21,0.00016438,2]
[403603782,1769413836905,-1757.21,0.00016438,2]
[403603783,1769413836914,-1757.21,0.00016438,2]
[403603784,1769413836923,-1757.21,0.00016438,2]
[403603785,1769413836932,-1757.21,0.00016438,2]
[403603786,1769413836941,-1757.21,0.00016438,2]
[403603787,1769413836951,-1757.21,0.00016438,2]
[403603788,1769413836960,-1757.21,0.00016438,2]
[403603789,1769413836968,-1757.21,0.00016438,2]
[403603790,1769413836978,-1757.21,0.00016438,2]
[403603791,1769413836988,-1757.21,0.00016438,2]
[403603792,1769413836998,-1757.21,0.00016438,2]
[403603793,1769413837008,-1757.21,0.00016438,2]
[403603794,1769413837017,-1757.21,0.00016438,2]
[403603795,1769413837026,-1757.21,0.00016438,2]
[403603796,1769413837036,-1757.21,0.00016438,2]
[403603797,1769413837046,-1757.21,0.00016438,2]
[403603798,1769413837055,-1757.21,0.00016438,2]
[403603799,1769413837064,-1757.21,0.00016438,2]
[403603800,1769413837074,-1757.21,0.00016438,2]
[403603801,1769413837083,-1757.21,0.00016438,2]
[403603802,1769413837092,-1757.43827204,0.00016438,2]
[403603803,1769413837102,-798.0,0.00016438,2]
[403603804,1769413837112,-1981.0,0.00016438,2]
[403603805,1769413837121,-453.48,0.00016443,2]
[403603806,1769413837131,-1000.0,0.00016452,2]
[403603807,1769413837141,-1308.97,0.00016483,2]
[403603808,1769413837151,-600.0,0.00016489,2]
[403603809,1769413837162,-500.0,0.00016493,2]
[403603810,1769413837171,-500.0,0.00016537,2]
[403603811,1769413837180,-500.0,0.00016548,2]
[403603812,1769413837190,-500.0,0.00016602,2]
[403603813,1769413837199,-1909.84,0.00016616,2]
[403603814,1769413837208,-162.08,0.00016616,2]
[403603815,1769413837218,-3477.0,0.00016616,2]
[403603816,1769413837227,-1408.0,0.00016616,2]
[403603817,1769413837236,-618.724,0.00016616,2]
[403603818,1769413837246,-210.327,0.00016616,2]
[403603819,1769413837256,-1269.0,0.00016616,2]
[403603820,1769413837265,-1204.0,0.00016616,2]
[403603821,1769413837275,-916.0,0.00016616,2]
[403603822,1769413837284,-6570.0,0.00016616,2]
[403603823,1769413837294,-4831.0,0.00016616,2]
[403603824,1769413837303,-500.0,0.00016657,2]
[403603825,1769413837313,-500.0,0.00016712,2]
[403603826,1769413837323,-166.56,0.00016712,2]
[403603827,1769413837332,-1086.0,0.0001672,2]
[403603828,1769413837341,-163.0,0.0001672,2]
[403603829,1769413837351,-837.0,0.0001672,2]
[403603830,1769413837360,-1086.0,0.0001672,2]
[403603831,1769413837370,-1086.0,0.0001672,2]
[403603832,1769413837379,-1086.0,0.0001672,2]
[403603833,1769413837388,-1086.0,0.0001672,2]
[403603834,1769413837398,-1086.0,0.0001672,2]
[403603835,1769413837407,-1086.0,0.0001672,2]
[403603836,1769413837416,-1086.0,0.0001672,2]
[403603837,1769413837426,-1086.0,0.0001672,2]
[403603838,1769413837435,-1086.0,0.0001672,2]
[403603839,1769413837444,-2099.6,0.00016749,2]
[403603840,1769413837453,-1308.97,0.00016757,2]
[403603841,1769413837463,-10698.54905143,0.0001676,2]
[403603842,1769413837472,-236.23127952,0.0001676,2]
[403603843,1769413837482,-7317.08563727,0.0001676,2]
[403603844,1769413837491,-500.0,0.00016767,2]
[403603845,1769413837501,-500.0,0.00016822,2]
[403603846,1769413837510,-155.0,0.00016848,2]
[403603847,1769413837520,-181.08010149,0.00016858,2]
[403603848,1769413837530,-885.86649465,0.00016858,2]
[403603849,1769413837539,-179.77886385,0.00016858,2]
[403603850,1769413837549,-151.0,0.00016858,2]
[403603851,1769413837558,-2099.6,0.00016863,2]
[403603852,1769413837567,-1000.0,0.00016867,2]
[403603853,1769413837576,-501.16065005,0.00016884,2]
[403603855,1769413837585,-500.0,0.00016884,2]
[403603856,1769413837594,-500.97270712,0.00016884,2]
[403603857,1769413837603,-500.89949552,0.00016884,2]
[403603858,1769413837612,-500.0,0.00016884,2]
[403603859,1769413837626,-501.78167983,0.00016884,2]
[403603860,1769413837635,-500.63567767,0.00016884,2]
[403603861,1769413837644,-501.44171962,0.00016884,2]
[403603862,1769413837653,-501.66199463,0.00016884,2]
[403603863,1769413837663,-500.0,0.00016884,2]
[403603864,1769413837672,-501.02318751,0.00016884,2]
[403603865,1769413837681,-500.0,0.00016884,2]
[403603866,1769413837691,-500.0,0.00016884,2]
[403603867,1769413837700,-500.0,0.00016884,2]
[403603868,1769413837709,-159.9184,0.00016884,2]
[403603869,1769413837718,-501.21016651,0.00016884,2]
[403603870,1769413837727,-250.07737695,0.00016884,2]
[403603871,1769413837735,-500.03510196,0.00016884,2]
[403603872,1769413837745,-180.06810397,0.00016884,2]
[403603873,1769413837754,-500.0,0.00016884,2]
[403603874,1769413837763,-500.0,0.00016884,2]
[403603875,1769413837772,-500.0,0.00016884,2]
[403603876,1769413837781,-501.32593158,0.00016884,2]
[403603877,1769413837790,-500.0,0.00016884,2]
[403603878,1769413837799,-500.88310046,0.00016884,2]
[403603879,1769413837808,-501.61147833,0.00016884,2]
[403603880,1769413837817,-500.0,0.00016884,2]
[403603881,1769413837826,-500.0,0.00016884,2]
[403603882,1769413837836,-501.32277439,0.00016884,2]
[403603883,1769413837844,-433.0,0.0001689,2]
[403603884,1769413837854,-158.49064135,0.00016909,2]
[403603885,1769413837863,-281.95581676,0.00016923,2]
[403603886,1769413837873,-157.16,0.00016959,2]
[403603887,1769413837883,-1000.0,0.00016964,2]
[403603888,1769413837893,-2099.6,0.00016976,2]
[403603889,1769413837902,-798.0,0.00016986,2]
[403603891,1769413837912,-602.9035795,0.00016999,2]
[403603894,1769413837921,-150.0,0.00017,2]
[403603896,1769413837931,-250.0,0.00017,2]
[403603897,1769413837940,-602.0,0.00017,2]
[403603898,1769413837949,-1308.97,0.00017031,2]
[403603899,1769413837959,-1086.0,0.0001704,2]
[403603900,1769413837968,-1086.0,0.0001704,2]
[403603901,1769413837977,-1086.0,0.0001704,2]
[403603902,1769413837987,-1086.0,0.0001704,2]
[403603903,1769413837997,-1086.0,0.0001704,2]
[403603904,1769413838007,-1086.0,0.0001704,2]
[403603905,1769413838016,-1086.0,0.0001704,2]
[403603906,1769413838026,-1086.0,0.0001704,2]
[403603907,1769413838036,-1092.0,0.0001704,2]
[403603908,1769413838046,-484.73,0.00017041,2]
[403603909,1769413838056,-484.73,0.00017041,2]
[403603910,1769413838066,-484.73,0.00017041,2]
[403603911,1769413838076,-484.73,0.00017041,2]
[403603912,1769413838086,-484.73,0.00017041,2]
[403603913,1769413838095,-484.73,0.00017041,2]
[403603914,1769413838105,-484.73,0.00017041,2]
[403603915,1769413838115,-484.73,0.00017041,2]
[403603916,1769413838124,-484.73,0.00017041,2]
[403603917,1769413838134,-484.73,0.00017041,2]
[403603918,1769413838143,-167.99,0.00017064,2]
[403603919,1769413838153,-867.98,0.00017066,2]
[403603920,1769413838162,-151.89329206,0.0001707,2]
[403603921,1769413838172,-1000.0,0.00017072,2]
[403603922,1769413838181,-2099.6,0.0001709,2]
[403603923,1769413838191,-4800.0,0.000171,6]
[403603924,1769413838200,-2351.0,0.0001711,2]
[403603925,1769413838209,-500.0,0.00017139,2]
[403603926,1769413838219,-345.82799971,0.00017139,2]
[403603927,1769413838228,-10698.54905143,0.0001714,2]
[403603928,1769413838238,-7317.08563727,0.0001714,2]
[403603929,1769413838247,-1000.0,0.0001715,2]
[403603930,1769413838257,-558.94,0.00017178,2]
[403603931,1769413838267,-179.98,0.00017178,2]
[403603932,1769413838278,-172.23,0.00017178,2]
[403603933,1769413838288,-179.98,0.00017178,2]
[403603934,1769413838298,-558.94,0.00017178,2]
[403603935,1769413838308,-172.23,0.00017178,2]
[403603936,1769413838318,-558.94,0.00017178,2]
[403603937,1769413838328,-255.49,0.00017178,2]
[403603938,1769413838337,-179.88,0.00017178,2]
[403603939,1769413838346,-172.23,0.00017178,2]
[403603940,1769413838355,-150.0,0.00017178,2]
[403603941,1769413838365,-558.94,0.00017178,2]
[403603942,1769413838375,-172.23,0.00017178,2]
[403603943,1769413838384,-558.94,0.00017178,2]
[403603944,1769413838394,-172.23,0.00017178,2]
[403603945,1769413838404,-150.0,0.00017178,2]
[403603946,1769413838414,-558.94,0.00017178,2]
[403603947,1769413838423,-172.23,0.00017178,2]
[403603948,1769413838433,-558.94,0.00017178,2]
[403603949,1769413838442,-172.23,0.00017178,2]
[403603950,1769413838452,-150.0,0.00017178,2]
[403603951,1769413838462,-344.21,0.00017178,2]
[403603952,1769413838472,-172.23,0.00017178,2]
[403603953,1769413838481,-468.76,0.00017178,2]
[403603954,1769413838491,-150.0,0.00017178,2]
[403603955,1769413838500,-172.23,0.00017178,2]
[403603956,1769413838510,-558.8,0.00017178,2]
[403603957,1769413838519,-150.0,0.00017178,2]
[403603958,1769413838529,-468.76,0.00017178,2]
[403603959,1769413838538,-150.0,0.00017178,2]
[403603960,1769413838547,-150.0,0.00017178,2]
[403603961,1769413838556,-1280.51,0.00017178,2]
[403603962,1769413838567,-1000.0,0.00017194,2]
[403603963,1769413838576,-6500.0,0.000172,6]
[403603964,1769413838586,-457.04715735,0.00017204,2]
[403603965,1769413838603,-1642.55284265,0.00017204,2]
[403603966,1769413838613,-453.48,0.00017226,2]
[403603967,1769413838626,-250.95,0.00017231,2]
[403603968,1769413838636,-10387.0,0.00017254,2]
[403603969,1769413838646,-155.0,0.00017259,2]
[403603970,1769413838656,-205.61,0.00017291,2]
[403603971,1769413838667,-8100.0,0.000173,6]
[403603972,1769413838678,-1308.97,0.00017305,2]
[403603973,1769413838692,-2099.6,0.00017318,2]
[403603974,1769413838702,-1000.0,0.00017326,2]
[403603975,1769413838711,-236.23127952,0.0001733,2]
[403603976,1769413838721,-867.98,0.0001734,2]
[403603977,1769413838730,-40.12619684,0.00017359,2]
[403603978,1769413838742,-546.87380316,0.00017359,2]
[403603979,1769413838751,-837.0,0.0001736,2]
[403603980,1769413838761,-837.0,0.0001736,2]
[403603981,1769413838770,-163.0,0.0001736,2]
[403603982,1769413838780,-1086.0,0.0001736,2]
[403603983,1769413838791,-837.0,0.0001736,2]
[403603984,1769413838801,-1086.0,0.0001736,2]
[403603985,1769413838811,-1086.0,0.0001736,2]
[403603986,1769413838820,-1086.0,0.0001736,2]
[403603987,1769413838830,-1086.0,0.0001736,2]
[403603988,1769413838843,-1086.0,0.0001736,2]
[403603989,1769413838853,-301.14,0.00017366,2]
[403603990,1769413838863,-1662.0,0.000174,2]
[403603991,1769413838873,-1600.0,0.000174,6]
[403603992,1769413838883,-187.78006525,0.00017406,2]
[403603993,1769413838893,-918.64355495,0.00017406,2]
[403603994,1769413838903,-151.0,0.00017406,2]
[403603995,1769413838912,-281.95581676,0.00017411,2]
[403603996,1769413838927,-150.0,0.00017421,2]
[403603997,1769413838937,-2099.6,0.00017431,2]
[403603998,1769413838947,-1000.0,0.00017432,2]
[403603999,1769413838957,-641.30995619,0.00017432,2]
[403604000,1769413838967,-1000.0,0.00017432,2]
[403604001,1769413838978,-1000.0,0.00017432,2]
[403604002,1769413838989,-1000.0,0.00017432,2]
[403604003,1769413838999,-752.73340052,0.00017432,2]
[403604004,1769413839009,-1000.0,0.00017432,2]
[403604005,1769413839019,-1000.0,0.00017432,2]
[403604006,1769413839030,-1000.0,0.00017432,2]
[403604007,1769413839040,-1000.0,0.00017432,2]
[403604008,1769413839050,-1000.0,0.00017432,2]
[403604009,1769413839059,-1002.64656649,0.00017432,2]
[403604010,1769413839070,-12754.0,0.0001746,2]
[403604011,1769413839080,-157.16,0.00017466,2]
[403604012,1769413839090,-1600.0,0.000175,6]
[403604013,1769413839101,-10698.54905143,0.0001752,2]
[403604014,1769413839111,-7317.08563727,0.0001752,2]
[403604015,1769413839120,-1000.0,0.00017534,2]
[403604016,1769413839130,-798.0,0.00017534,2]
[403604017,1769413839139,-2099.6,0.00017545,2]
[403604018,1769413839148,-346.0,0.00017553,2]
[403604019,1769413839158,-1000.0,0.00017562,2]
[403604020,1769413839167,-1309.02640756,0.00017579,2]
[403604021,1769413839178,-2508.0,0.000176,2]
[403604022,1769413839187,-1600.0,0.000176,6]
[403604023,1769413839197,-500.0,0.00017612,2]
[403604024,1769413839207,-867.98,0.00017614,2]
[403604025,1769413839217,-602.0,0.00017636,2]
[403604026,1769413839226,-1909.84,0.00017639,2]
[403604027,1769413839236,-12754.0,0.0001764,2]
[403604028,1769413839245,-3246.97110664,0.0001764,2]
[403604029,1769413839255,-2099.6,0.00017659,2]
[403604030,1769413839266,-1000.0,0.00017665,2]
[403604031,1769413839276,-155.0,0.0001767,2]
[403604032,1769413839286,-334.5472959,0.00017679,2]
[403604033,1769413839295,-1086.0,0.0001768,2]
[403604034,1769413839305,-1086.0,0.0001768,2]
[403604036,1769413839538,-1086.0,0.0001768,2]
[403604037,1769413839547,-1086.0,0.0001768,2]
[403604038,1769413839557,-1086.0,0.0001768,2]
[403604039,1769413839566,-1086.0,0.0001768,2]
[403604040,1769413839575,-1086.0,0.0001768,2]
[403604042,1769413839584,-753.04363975,0.0001769,2]
[403604043,1769413839594,-1600.0,0.000177,6]
[403604044,1769413839603,-167.99,0.00017714,2]
[403604045,1769413839613,-346.0,0.00017732,2]
[403604046,1769413839625,-25000.0,0.00017733,3]
[403604047,1769413839634,-346.0,0.00017736,2]
[403604048,1769413839643,-25000.0,0.00017742,3]
[403604049,1769413839652,-500.0,0.0001775,2]
[403604050,1769413839662,-17469.7842404,0.0001775,3]
[403604051,1769413839674,-7530.2157596,0.0001775,3]
[403604052,1769413839683,-1000.0,0.00017753,2]
[403604053,1769413839694,-4901.67698216,0.00017759,3]
[403604055,1769413842293,-258.37652494,0.0001448,2]
[403604056,1769413842303,-3304.51,0.00017,3]
[403604057,1769413842312,-248.12268233,0.00017759,3]
[403604058,1769413842323,-10869.68645824,0.00017759,3]
[403604059,1769413842335,-8980.51387727,0.00017759,3]
[403604060,1769413842345,-151.0,0.00017768,2]
[403604061,1769413842354,-2938.8040192,0.00017768,3]
[403604062,1769413842365,-348.01441186,0.00017768,3]
[403604063,1769413842375,-710.6373,0.00017768,3]
[403604064,1769413842386,-21002.54426894,0.00017768,3]
[403604065,1769413842394,-675.38550237,0.0001777,2]
[403604066,1769413842402,-300.0,0.0001777,2]
[403604067,1769413842411,-300.0,0.0001777,2]
[403604068,1769413842419,-33257.5075,0.00017771,2]
[403604069,1769413842428,-1000.0,0.00017771,2]
[403604070,1769413842436,-2099.6,0.00017773,2]
[403604071,1769413842445,-25000.0,0.00017777,3]
[403604072,1769413842456,-1909.84,0.00017785,2]
[403604073,1769413842467,-24838.60116702,0.00017786,3]
[403604074,1769413842480,-161.39883298,0.00017786,3]
[403604075,1769413842489,-251.28424483,0.00017794,3]
[403604076,1769413842499,-563.94852852,0.00017794,3]
[403604077,1769413842787,-258.37652492,0.00015409,2]
[403604078,1769413842798,-147.91374738,0.00016616,2]
[403604079,1769413842810,-439.775,0.00016616,2]
[403604080,1769413842851,-374.10410906,0.00016616,2]
[403604081,1769413843361,-353.20714356,0.00016616,2]
[403604082,1769413843372,-143.92260475,0.00016616,2]
[403604083,1769413843383,-840.8243908,0.00016616,2]
[403604084,1769413843395,-1471.15000445,0.00016616,2]
[403604085,1769413843405,-191.03611833,0.00017794,3]
[403604086,1769413843419,-4264.09911204,0.00017794,3]
[403604087,1769413843432,-814.99050741,0.00017794,3]
[403604088,1769413843444,-8322.42902676,0.00017794,3]
[403604089,1769413843461,-1377.33194684,0.00017794,3]
[403604090,1769413843472,-394.07870975,0.00017794,3]
[403604091,1769413843485,-8820.80180552,0.00017794,3]
[403604092,1769413843495,-753.04363973,0.00017795,2]
[403604093,1769413843505,-1946.0,0.000178,6]
[403604094,1769413843515,-25000.0,0.00017803,3]
[403604095,1769413843525,-500.0,0.00017808,2]
[403604096,1769413843536,-1000.0,0.00017808,2]
[403604097,1769413843547,-25000.0,0.00017812,3]
[403604098,1769413843557,-500.0,0.00017819,2]
[403604099,1769413843567,-8081.75591382,0.0001782,2]
[403604100,1769413843578,-2000.0,0.0001782,2]
[403604101,1769413843588,-2000.0,0.0001782,2]
[403604102,1769413843598,-2000.0,0.0001782,2]
[403604103,1769413843608,-2000.0,0.0001782,2]
[403604104,1769413843618,-12754.0,0.0001782,2]
[403604105,1769413843634,-2602.30488931,0.0001782,2]
[403604106,1769413843644,-25000.0,0.00017821,3]
[403604107,1769413843654,-25000.0,0.0001783,3]
[403604108,1769413843664,-25000.0,0.00017838,3]
[403604109,1769413843673,-25000.0,0.00017847,3]
[403604110,1769413843682,-200.0,0.00017855,2]
[403604111,1769413843692,-1909.84,0.00017855,2]
[403604112,1769413843701,-200.0,0.00017856,2]
[403604113,1769413843710,-25000.0,0.00017856,3]
[403604114,1769413843720,-200.0,0.00017856,2]
[403604115,1769413843729,-200.0,0.00017856,2]
[403604116,1769413843739,-500.0,0.00017863,2]
[403604117,1769413843748,-25000.0,0.00017865,3]
[403604118,1769413843757,-346.0,0.00017871,2]
[403604119,1769413843767,-25000.0,0.00017874,3]